[Event "FIDE WTC Prel-A 2022"]
[Site "Jerusalem"]
[Date "2022.11.20"]
[Round "2.1"]
[White "Santos Latasa, Jaime"]
[Black "Lu, Shanglei"]
[Result "0-1"]
[ECO "D39"]
[WhiteElo "2665"]
[BlackElo "2605"]
[Annotator "TA"]
[PlyCount "164"]
[EventDate "2022.11.20"]
[EventType "team-tourn"]
[EventCountry "ISR"]
[SourceTitle "playchess.com"]
[Source "ChessBase"]
[SourceQuality "1"]
[WhiteTeam "Spain"]
[BlackTeam "China"]
[WhiteTeamCountry "ESP"]
[BlackTeamCountry "CHN"]
[TimeControl "2700+10"]

{[%evp 15,164,22,6,8,24,0,14,7,12,23,18,9,6,15,12,0,51,-44,-38,-75,-74,-57,-47,-100,-93,-101,-31,-35,-30,-96,-53,-87,-47,-64,-43,-81,-76,-81,-60,-139,-33,-32,-32,-32,-32,-27,-29,-33,-28,-57,-40,-25,-28,-35,-28,-28,-29,-30,-9,-8,-8,-69,-33,-73,-71,-65,-78,-72,-71,-71,-67,-61,-55,-60,0,0,0,0,0,-25,-31,-41,-41,-41,-41,-40,-8,-8,-8,-17,-17,-66,-66,-102,-27,-33,-46,-31,-8,-8,-8,-29956,-29961,-29962,-29963,-29964,-29963,-29960,-29964,-29963,-29965,-29969,-29970,-29967,-29963,-29973,-29976,-29976,-29977,-29978,-29979,-29979,-29980,-29980,-29981,-29981,-29982,-29986,-29980,-29980,-29980,-29981,-29982,-29982,-29983,-29983,-29984,-29984,-29985,-29985,-29986,-29986,-29987,-29987,-29988,-29990,-29991,-29991,-29992,-29992,-467]} 1. d4 {[%emt 0:00:03]} Nf6 {[%emt 0:00:01]} 2. c4 {[%emt 0:00:01]} e6 {[%emt 0:00:03]} 3. Nf3 {[%emt 0:00:02]} d5 {[%emt 0:00:02]} 4. Nc3 {[%emt 0:00:02]} dxc4 {[%emt 0:45:44]} 5. e4 {[%emt 0:00:20]} Bb4 {[%emt 0:00:00]} 6. Bg5 {[%emt 0:00:01]} h6 {[%emt 0:00:00]} 7. Bxf6 {[%emt 0:00:06]} Qxf6 {[%emt 0:00:00]} 8. Bxc4 {[%emt 0:00:03]} c5 {[%emt 0:00:00]} 9. O-O {[%emt 0:00:05] aiming for Nb5. D39: Queen's Gambit Declined: Ragozin Defence with 5 Bg5 dxc4.} cxd4 {[%emt 0:00:00]} 10. e5 {[%emt 0:00:03]} Qd8 {[%emt 0:00:00]} 11. Ne4 {[%emt 0:00:02][%mdl 1024] White has compensation. The position is equal.} O-O {[%emt 0:00:00]} 12. Qe2 {[%emt 0:00:17]} Be7 {[%emt 0:00:00]} 13. Rfd1 {[%emt 0:00:21] The main line 13.Rfd1 scores better than 13.Rad1.} Qa5 {[%emt 0:00:00]} 14. a3 {[%emt 0:00:21]} ({Much weaker is} 14. Rxd4 Nc6 15. Rdd1 (15. Qd2 Qc7 $17) 15... Nxe5 16. Nxe5 Qxe5 $17) 14... Rd8 {[%emt 0:00:00]} 15. Ng3 {[%emt 0:02:17]} Nd7 {[%emt 0:00:00]} (15... Bd7 $11) 16. Bd3 {[%emt 0:04:02]} (16. b4 $14 Qb6 17. Rxd4 (17. Nxd4 Nxe5 18. Qxe5 Bf6 $17)) 16... Nf8 $15 {[%emt 0:00:00] [#]} 17. Nd2 $146 {[%emt 0:00:40]} ({Predecessor:} 17. Nh5 Bd7 18. b4 Qb6 19. Nd2 Bc6 20. Qg4 g6 21. Nf4 Kg7 22. Nh5+ Kg8 23. Nf4 Kg7 24. Nh5+ Kg8 25. Nf4 {½-½ (25) Horvath,D (2331)-Predojevic,B (2625) Austria 2018}) 17... Bd7 {[%emt 0:00:00]} 18. f4 {[%emt 0:02:08]} Rac8 {[%emt 0:00:00]} 19. Nf3 {[%emt 0:02:49]} ({White should play} 19. b4 $15 Qc7 20. b5) 19... a6 {[%emt 0:00:00]} 20. Ne4 {[%emt 0:03:07]} Bb5 {[%emt 0:00:00]} (20... Qb6 $17 21. Qf2 Ba4) 21. Bxb5 {[%emt 0:00:38]} axb5 {[%emt 0:00:00]} 22. b4 {[%emt 0:01:55]} (22. g3 $11 {keeps the balance.}) 22... Qa4 {[%emt 0:00:00][%cal Od4d3]} 23. Ne1 {[%emt 0:01:46]} (23. Nxd4 $2 Rc4 24. Qf2 Rd5 $17) 23... b6 {[%emt 0:00:00]} 24. g3 {[%emt 0:01:05]} Rc4 {[%emt 0:00:00]} 25. Qf3 {[%emt 0:01:13]} Qa8 {[%emt 0:00:00]} 26. Kf2 {[%emt 0:04:50]} d3 {[%emt 0:00:00]} 27. Nd2 {[%emt 0:02:15]} ({White must play} 27. Nd6 $1 $15) 27... Rc3 {[%emt 0:00:00]} ({Black should try} 27... Qa7 $17 {...Rc3 is the strong threat.} 28. Nxc4 bxc4) 28. Qxa8 {[%emt 0:01:01]} Rxa8 {[%emt 0:00:00]} 29. Ne4 $1 {[%emt 0:02:26][%csl LRc3,LRd3]} Rcxa3 {[%emt 0:00:00]} 30. Rxa3 {[%emt 0:00:01][%mdl 64] Remove Defender} Rxa3 {[%emt 0:00:00]} 31. Nxd3 {[%emt 0:00:02]} g5 {[%emt 0:00:00]} 32. Ke2 {[%emt 0:01:21]} Ng6 {[%emt 0:00:00]} 33. fxg5 {[%emt 0:02:10]} hxg5 {[%emt 0:00:00]} 34. Rc1 {[%emt 0:00:23]} Ra2+ {[%emt 0:00:00]} 35. Ke3 {[%emt 0:00:51]} Kg7 {[%emt 0:00:00]} 36. h3 {[%emt 0:01:14]} Ra3 {[%emt 0:00:03][%csl LRb4,LRe5] Hoping for ...Nxe5.} (36... Bf8 $5 {[%cal Rg6e7]}) 37. Rc3 {[%emt 0:01:32]} Ra4 {[%emt 0:00:21]} 38. Rb3 {[%emt 0:03:09]} (38. Rc7 $11) 38... Ra2 {[%emt 0:00:44]} 39. Kf3 {[%emt 0:00:52]} Bd8 {[%emt 0:01:54]} 40. Rc3 {[%emt 0:00:49] Prevents Bc7.} Ne7 {[%emt 0:00:12] Inhibits Rc8.} 41. Nd6 {[%emt 0:01:03]} Nd5 {[%emt 0:00:56]} 42. Rb3 {[%emt 0:00:10]} Be7 {[%emt 0:01:39]} 43. Nxb5 {[%emt 0:00:13]} Ra4 {[%emt 0:00:05] Black has more active pieces.} 44. Nd6 {[%emt 0:01:31]} Bxd6 {[%emt 0:00:01]} (44... Ra8 $15) 45. exd6 {[%emt 0:00:03][%mdl 4096] Endgame KRN-KRN} Ra8 {[%emt 0:00:02]} 46. Ne5 $1 {[%emt 0:02:20]} Rd8 {[%emt 0:00:04]} 47. Nc4 {[%emt 0:00:08]} (47. Ra3 $5 {[%cal Ra3a7]}) 47... b5 {[%emt 0:00:03]} 48. Na3 {[%emt 0:00:05]} Rxd6 {[%emt 0:00:25]} 49. Nxb5 {[%emt 0:00:02]} Rb6 {[%emt 0:00:01]} 50. Nd4 {[%emt 0:00:12]} Rxb4 {[%emt 0:00:07]} 51. Rxb4 {[%emt 0:00:01]} Nxb4 {[%emt 0:00:01] KN-KN} 52. Ke4 {[%emt 0:00:24]} Nd5 {[%emt 0:00:16]} 53. Nf3 {[%emt 0:00:08]} (53. Ke5 $11) 53... f6 {[%emt 0:00:10]} 54. g4 {[%emt 0:00:18]} Nf4 {[%emt 0:00:14]} (54... Kg6 $17 55. Nd2 Nc3+ 56. Ke3 Nb5) 55. h4 $11 {[%emt 0:00:31]} Nh3 {[%emt 0:00:04] White must now prevent ...Nf2+.} 56. Nd4 {[%emt 0:00:41]} gxh4 {[%emt 0:00:11]} (56... Kf7 $5 {[%cal Rg5h4]} 57. h5 Nf2+ 58. Kf3 Nd3 $15) 57. Nxe6+ {[%emt 0:00:02]} Kg6 {[%emt 0:00:14] ( -> ...Ng5+)} 58. Nd4 $2 {[%emt 0:00:10][%mdl 8192] [#] White does not recover from this.} (58. Nc5 $11) 58... Kg5 $1 {[%emt 0:00:15] Black mates.} 59. Kf3 {[%emt 0:00:02]} Nf4 {[%emt 0:00:02]} 60. Nf5 {[%emt 0:00:32]} Ng6 {[%emt 0:00:29]} 61. Ne3 {[%emt 0:00:02]} Ne5+ {[%emt 0:00:03]} 62. Kg2 {[%emt 0:00:02]} Nxg4 {[%emt 0:00:03]} 63. Nd5 {[%emt 0:00:01]} Ne5 {[%emt 0:00:15]} 64. Kh3 {[%emt 0:00:04]} Nd3 {[%emt 0:00:02]} 65. Kh2 {[%emt 0:00:05]} f5 {[%emt 0:00:06][%cal Bf6f5,Bf5f4,Bf4f3][%mdl 32]} 66. Nc3 {[%emt 0:00:05]} Kg4 {[%emt 0:00:07]} 67. Nd5 {[%emt 0:00:05]} f4 {[%emt 0:00:23]} 68. Nf6+ {[%emt 0:00:14]} Kf5 {[%emt 0:00:11]} 69. Nd5 {[%emt 0:00:04]} f3 {[%emt 0:00:04]} 70. Ne3+ {[%emt 0:00:17]} Ke4 {[%emt 0:00:17]} 71. Nd1 {[%emt 0:00:15]} Nf4 {[%emt 0:00:18]} 72. Kg1 {[%emt 0:00:10]} Nh3+ {[%emt 0:00:18]} 73. Kh2 {[%emt 0:00:05] [#]} Ng5 $1 {[%emt 0:00:02]} 74. Kg1 {[%emt 0:00:05]} Kd3 {[%emt 0:00:29]} 75. Kf2 {[%emt 0:00:05]} h3 {[%emt 0:00:15]} 76. Kg3 {[%emt 0:00:15]} Kd2 {[%emt 0:00:18]} 77. Nf2 {[%emt 0:00:02]} Ke2 {[%emt 0:00:06]} 78. Ng4 {[%emt 0:00:54]} Ne4+ {[%emt 0:00:01]} 79. Kh4 {[%emt 0:00:03]} f2 {[%emt 0:00:24]} 80. Nxf2 {[%emt 0:00:27]} Nxf2 {[%emt 0:00:02]} 81. Kg3 {[%emt 0:00:01]} Ke3 {[%emt 0:00:02]} 82. Kh2 {[%emt 0:00:02]} Kf3 {[%emt 0:00:02] Weighted Error Value: White=0.29 (precise) /Black=0.16 (very precise)} (82... Kf4 $142 83. Kg1 Kg3 84. Kf1 h2 85. Ke2 h1=Q 86. Kd2 Qc6 87. Ke3 Qc3+ 88. Ke2 Qc2+ 89. Kf1 Qd1#) 0-1

[Event "FIDE WTC Prel-A 2022"]
[Site "Jerusalem"]
[Date "2022.11.20"]
[Round "2.2"]
[White "Xu, Xiangyu"]
[Black "Anton Guijarro, David"]
[Result "1/2-1/2"]
[ECO "E20"]
[WhiteElo "2577"]
[BlackElo "2668"]
[Annotator "TA"]
[PlyCount "72"]
[EventDate "2022.11.20"]
[EventType "team-tourn"]
[EventCountry "ISR"]
[SourceTitle "playchess.com"]
[Source "ChessBase"]
[SourceQuality "1"]
[WhiteTeam "China"]
[BlackTeam "Spain"]
[WhiteTeamCountry "CHN"]
[BlackTeamCountry "ESP"]
[TimeControl "2700+10"]

{[%evp 9,72,10,6,-7,27,-3,21,33,35,22,43,0,6,3,11,18,34,-49,-31,-64,-65,-62,-56,-60,0,0,0,-27,-14,-16,-19,-4,-10,-12,0,-10,0,0,0,0,0,0,0,0,0,0,0,0,0,0,0,0,0,0,0,0,0,0,0,0,0,0,0,0,0]} 1. d4 {[%emt 0:00:04]} Nf6 {[%emt 0:00:05]} 2. c4 {[%emt 0:00:05]} e6 {[%emt 0:00:11]} 3. Nc3 {[%emt 0:00:06]} Bb4 {[%emt 0:00:11]} 4. f3 {[%emt 0:00:03]} c5 {[%emt 0:01:39]} 5. d5 {[%emt 0:00:03]} b5 {[%emt 0:01:44]} 6. e4 {[%emt 0:00:04] E20: Nimzo-Indian: 4 g3 and 4 f3.} d6 {[%emt 0:00:02] The modern move.} 7. a3 {[%emt 0:00:42]} Bxc3+ {[%emt 0:05:17]} 8. bxc3 {[%emt 0:45:23]} bxc4 {[%emt 0:03:31]} 9. Bxc4 {[%emt 0:00:00]} O-O {[%emt 0:00:52]} 10. Ne2 {[%emt 0:00:00]} exd5 {[%emt 0:01:25]} 11. Bxd5 {[%emt 0:00:00]} Nxd5 {[%emt 0:00:05]} 12. Qxd5 {[%emt 0:00:00]} Be6 {[%emt 0:01:16] [#]} 13. Qh5 $146 {[%emt 0:00:00]} (13. Qxa8 $14 Qb6 14. Bf4) ({Predecessor:} 13. Qd1 d5 14. exd5 Bxd5 15. O-O Bc4 16. Qxd8 Rxd8 17. Re1 Re8 18. Kf2 Nd7 19. Bf4 {0-1 (83) Erigaisi,A (2728)-Rapport,R (2754) chess24.com INT 2022}) 13... Bc4 {[%emt 0:02:18][%cal Of7f5]} 14. Kf2 {[%emt 0:00:00]} Nc6 {[%emt 0:01:09]} 15. Rd1 {[%emt 0:00:00]} Rb8 {[%emt 0:01:11]} 16. Ng3 {[%emt 0:00:00]} g6 {[%emt 0:05:55] Inhibits Nf5.} (16... Bb3 $1 $15 17. Re1 Ne5) 17. Qh6 $11 {[%emt 0:00:00]} Ne5 {[%emt 0:02:35]} 18. Kg1 {[%emt 0:00:00]} Qe7 {[%emt 0:01:25]} 19. Bf4 {[%emt 0:00:00][%cal Od1d6] The position is equal.} f6 {[%emt 0:01:53]} 20. Bxe5 {[%emt 0:00:00]} dxe5 {[%emt 0:00:05]} 21. h4 {[%emt 0:00:00]} Rfd8 {[%emt 0:01:04]} 22. h5 {[%emt 0:00:00]} Bf7 {[%emt 0:00:42]} 23. hxg6 {[%emt 0:00:00]} hxg6 {[%emt 0:00:03]} 24. Nf1 {[%emt 0:00:00][%cal Bg3f1,Bf1e3,Be3d1,Bd1b2][%mdl 32]} c4 {[%emt 0:00:28]} 25. Rxd8+ {[%emt 0:00:00]} Rxd8 {[%emt 0:00:41]} 26. Ne3 {[%emt 0:00:00]} Qf8 $1 {[%emt 0:00:20]} 27. Qxf8+ {[%emt 0:00:00]} Kxf8 {[%emt 0:00:03][%cal Bg8f8,Bf8e7,Be7d6,Bd6c5,Bc5b5][%mdl 32]} 28. Rd1 {[%emt 0:00:00]} Rxd1+ {[%emt 0:01:49]} 29. Nxd1 {[%emt 0:00:00][%mdl 4096] Endgame KB-KN} Ke7 {[%emt 0:00:02]} 30. Kf2 {[%emt 0:00:00]} Kd6 {[%emt 0:01:35]} 31. Ke3 {[%emt 0:00:00]} Kc5 {[%emt 0:00:30]} 32. g4 {[%emt 0:00:00]} Kb5 {[%emt 0:00:42] [#] aiming for ...Ka4.} 33. Nb2 {[%emt 0:00:00]} Be6 {[%emt 0:00:38]} 34. Kf2 {[%emt 0:00:00]} Bd7 {[%emt 0:01:14]} 35. Ke3 {[%emt 0:00:00]} Be6 {[%emt 0:00:03]} 36. Kf2 {[%emt 0:00:00]} Bd7 {[%emt 0:00:02] Weighted Error Value: White=0.10 (very precise) /Black=0.08 (flawless)} 1/2-1/2

[Event "FIDE WTC Prel-A 2022"]
[Site "Jerusalem"]
[Date "2022.11.20"]
[Round "2.3"]
[White "Shirov, Alexei"]
[Black "Bai, Jinshi"]
[Result "1/2-1/2"]
[ECO "C42"]
[WhiteElo "2666"]
[BlackElo "2569"]
[Annotator "TA"]
[PlyCount "92"]
[EventDate "2022.11.20"]
[EventType "team-tourn"]
[EventCountry "ISR"]
[SourceTitle "playchess.com"]
[Source "ChessBase"]
[SourceQuality "1"]
[WhiteTeam "Spain"]
[BlackTeam "China"]
[WhiteTeamCountry "ESP"]
[BlackTeamCountry "CHN"]
[TimeControl "2700+10"]

{[%evp 25,92,22,22,29,16,0,0,0,20,12,12,5,12,0,0,-18,-18,-18,20,-33,-26,-27,-27,-26,-23,-18,-15,-36,-33,-31,-16,-51,-51,-51,-51,-51,-51,-70,-70,-79,-79,-79,-37,-70,-70,-70,-70,-70,-70,-82,-82,-82,-82,-82,-82,-87,-87,-87,-87,-87,-87,-87,-87,-87,-87,-87,0,-87,0]} 1. e4 {[%emt 0:00:03]} e5 {[%emt 0:00:02]} 2. Nf3 {[%emt 0:00:02]} Nf6 {[%emt 0:00:02]} 3. Nxe5 {[%emt 0:00:03]} d6 {[%emt 0:00:03]} 4. Nf3 {[%emt 0:00:01]} Nxe4 {[%emt 0:00:02]} 5. d4 {[%emt 0:00:02]} d5 {[%emt 0:00:05]} 6. Bd3 {[%emt 0:00:05]} Bd6 {[%emt 0:00:03]} 7. O-O {[%emt 0:00:11]} O-O {[%emt 0:00:03]} 8. c4 {[%emt 0:00:03]} c6 {[%emt 0:00:02]} 9. cxd5 {[%emt 0:00:05]} cxd5 {[%emt 0:00:02]} 10. Nc3 {[%emt 0:00:02]} Re8 {[%emt 0:00:23]} 11. Re1 {[%emt 0:06:01]} Nxc3 {[%emt 0:00:12]} 12. Rxe8+ {[%emt 0:01:05]} Qxe8 {[%emt 0:00:02]} 13. bxc3 {[%emt 0:00:02]} Nd7 {[%emt 0:00:29]} 14. Qb3 {[%emt 0:01:13] C42: Petroff Defence: 3 Nxe5 and unusual White 3rd moves.} Nb6 {[%emt 0:00:49] [#]} 15. Bd2 $146 {[%emt 0:05:37]} ({Predecessor:} 15. Ba3 Bxa3 16. Qxa3 h6 17. h3 Be6 18. Rb1 Qf8 19. Qa5 Qc8 20. Ne5 Nd7 21. f4 b6 {½-½ (38) Navara,D (2681)-Vidit,S (2723) Prague 2022}) 15... Bg4 {[%emt 0:10:28]} 16. Re1 {[%emt 0:00:07] The position is equal.} Qd7 {[%emt 0:00:07] [#] Threatens to win with ...Bxf3.} 17. Ne5 {[%emt 0:00:30]} Bxe5 {[%emt 0:00:02]} 18. dxe5 {[%emt 0:03:21]} Bf5 {[%emt 0:04:11]} 19. Bb5 {[%emt 0:00:50]} Qe7 {[%emt 0:01:36]} 20. Qb4 {[%emt 0:07:16]} Qxb4 {[%emt 0:04:14]} 21. cxb4 {[%emt 0:00:01]} Rc8 {[%emt 0:00:02]} 22. Rc1 {[%emt 0:00:14]} (22. Be3 $11) 22... Nc4 $15 {[%emt 0:02:29]} 23. Bxc4 {[%emt 0:01:44]} dxc4 $11 {[%emt 0:00:33][%mdl 4096] Endgame KRB-KRB} 24. f3 {[%emt 0:03:18]} Be6 {[%emt 0:00:21]} 25. Kf2 {[%emt 0:00:41]} Rd8 {[%emt 0:00:38]} 26. Be1 {[%emt 0:02:51]} h5 {[%emt 0:01:31]} 27. Ke2 {[%emt 0:00:28]} Rd5 {[%emt 0:04:14]} 28. Rxc4 {[%emt 0:00:41]} Rxe5+ {[%emt 0:00:03]} 29. Re4 {[%emt 0:00:01]} Rxe4+ {[%emt 0:00:01]} 30. fxe4 {[%emt 0:00:01]} Bxa2 $15 {[%emt 0:00:02] KB-KB} 31. Ke3 {[%emt 0:00:15]} Bc4 {[%emt 0:01:22]} 32. Kd4 {[%emt 0:00:45]} Bf1 {[%emt 0:00:10]} 33. g3 {[%emt 0:00:01]} Bb5 {[%emt 0:01:13]} 34. Bd2 {[%emt 0:00:22]} Kf8 {[%emt 0:00:38]} 35. Bf4 {[%emt 0:00:55]} Ke7 {[%emt 0:00:09]} 36. Be5 {[%emt 0:00:06]} g6 {[%emt 0:00:23]} 37. h4 {[%emt 0:00:55]} Kd7 {[%emt 0:01:06]} 38. Bb8 {[%emt 0:00:19]} a6 {[%emt 0:00:02]} 39. Bf4 {[%emt 0:01:04]} Kc6 {[%emt 0:00:09]} 40. e5 {[%emt 0:01:01]} Be2 {[%emt 0:01:45]} 41. Bg5 {[%emt 0:00:06]} Bg4 {[%emt 0:00:13]} 42. Bf4 {[%emt 0:00:03]} Kb5 {[%emt 0:00:13]} 43. Kc3 {[%emt 0:00:02]} Be6 {[%emt 0:01:53]} 44. Bg5 {[%emt 0:00:03]} Kc6 {[%emt 0:01:13]} 45. Kd4 {[%emt 0:00:02]} Kb5 {[%emt 0:00:02]} 46. Kc3 {[%emt 0:00:02]} Kc6 {[%emt 0:09:28] Weighted Error Value: White=0.08 (flawless) /Black=0.06 (flawless)} (46... Bd7 $17) 1/2-1/2

[Event "FIDE WTC Prel-A 2022"]
[Site "Jerusalem"]
[Date "2022.11.20"]
[Round "2.4"]
[White "Li, Di"]
[Black "Yuffa, Daniil"]
[Result "1-0"]
[ECO "E16"]
[WhiteElo "2539"]
[BlackElo "2587"]
[Annotator "TA"]
[PlyCount "93"]
[EventDate "2022.11.20"]
[EventType "team-tourn"]
[EventCountry "ISR"]
[SourceTitle "playchess.com"]
[Source "ChessBase"]
[SourceQuality "1"]
[WhiteTeam "China"]
[BlackTeam "Spain"]
[WhiteTeamCountry "CHN"]
[BlackTeamCountry "ESP"]
[TimeControl "2700+10"]

{[%evp 15,93,8,16,22,6,0,15,0,27,35,41,38,31,30,34,40,31,38,31,0,0,0,35,35,45,29,32,34,52,44,104,119,106,93,104,110,225,225,194,207,392,409,396,282,282,210,195,191,187,147,198,209,236,228,334,147,165,165,430,408,460,412,845,833,749,735,1015,1016,950,857,2597,967,2139,1399,29974,29975,12849,6238,1955,1742]} 1. d4 {[%emt 0:00:02]} Nf6 {[%emt 0:00:08]} 2. Nf3 {[%emt 0:00:02]} d5 {[%emt 0:00:15]} 3. c4 {[%emt 0:00:03]} e6 {[%emt 0:00:04]} 4. g3 {[%emt 0:00:03]} Bb4+ {[%emt 0:00:03]} 5. Nbd2 {[%emt 0:00:07]} O-O {[%emt 0:00:47]} 6. Bg2 {[%emt 0:00:04]} b6 {[%emt 0:00:12]} 7. O-O {[%emt 0:00:03]} Bb7 {[%emt 0:00:04]} 8. Ne5 {[%emt 0:00:08]} Qc8 {[%emt 0:00:25]} 9. cxd5 {[%emt 0:00:05] 9.Qc2 is more advanced technology. E16: Queen's Indian: 4 g3 Bb7 5 Bg2 Bb4+.} Bxd5 {[%emt 0:03:02]} 10. e4 {[%emt 0:46:13]} Bb7 {[%emt 0:01:04]} 11. Re1 {[%emt 0:00:00] [#] The position is equal.} c5 $146 {[%emt 0:11:42]} ({Predecessor:} 11... Rd8 12. a3 Bxd2 13. Qxd2 c5 14. b4 Nc6 15. Nxc6 Qxc6 16. bxc5 bxc5 17. d5 exd5 18. exd5 Nxd5 {1-0 (34) Greenfeld,A (2504)-Zanan,E (2521) Maalot Tarshiha 2018}) 12. a3 {[%emt 0:00:00]} Bxd2 {[%emt 0:00:30]} 13. Bxd2 {[%emt 0:00:00]} ({Reject} 13. Qxd2 Rd8 $11) 13... Rd8 {[%emt 0:01:45]} 14. Ng4 {[%emt 0:00:00]} Nxg4 {[%emt 0:04:57]} 15. Qxg4 {[%emt 0:00:00]} Rxd4 {[%emt 0:01:00]} 16. Bc3 {[%emt 0:00:00]} Nc6 {[%emt 0:00:02]} 17. Bxd4 $40 {[%emt 0:00:00][%mdl 128] White is up to no good.} Nxd4 {[%emt 0:00:02]} 18. Rac1 {[%emt 0:00:00] Prevents Nc2.} e5 {[%emt 0:01:45]} 19. Qxc8+ {[%emt 0:00:00]} Rxc8 {[%emt 0:00:08]} 20. f4 {[%emt 0:00:00]} f6 {[%emt 0:00:53]} 21. Kf2 {[%emt 0:00:00]} a5 {[%emt 0:01:30]} 22. Bf1 {[%emt 0:00:00]} g5 {[%emt 0:01:53]} (22... Kf7 $14) 23. Bc4+ {[%emt 0:00:00]} Kg7 {[%emt 0:00:05]} 24. fxg5 {[%emt 0:00:00]} fxg5 {[%emt 0:01:06]} 25. Ke3 $1 {[%emt 0:00:00]} b5 {[%emt 0:00:26]} (25... Rc7 $16) 26. Bd5 $18 {[%emt 0:00:00]} Bxd5 {[%emt 0:01:03]} 27. exd5 {[%emt 0:00:00][%mdl 4096] Endgame KRR-KRN} c4 $2 {[%emt 0:00:02]} (27... Kf6 28. g4 Ke7) 28. Ke4 {[%emt 0:00:00]} Nb3 {[%emt 0:01:00]} 29. Rcd1 {[%emt 0:00:00]} Nc5+ {[%emt 0:00:55]} 30. Kf5 {[%emt 0:00:00]} Nd3 {[%emt 0:04:30]} 31. Re2 {[%emt 0:00:00]} ({And not} 31. Kxg5 Nxb2 32. Rd2 Nd3 $11) 31... Kf7 {[%emt 0:01:18]} 32. Kxg5 {[%emt 0:00:00]} Ke7 {[%emt 0:00:52]} (32... h6+ $16 {was called for.} 33. Kxh6 Kf6) 33. Kh6 $1 {[%emt 0:00:00]} Kd6 {[%emt 0:00:05]} 34. Kxh7 {[%emt 0:00:00]} b4 {[%emt 0:00:50] [#]} (34... Kxd5 {might work better.} 35. g4 Rc7+ 36. Kh6 Rc6+ 37. Kg5 Rc8) 35. axb4 {[%emt 0:00:00]} (35. g4 $1 $18 {is the precise move to win.}) 35... axb4 $16 {[%emt 0:00:01] [#]} 36. g4 $1 {[%emt 0:00:00][%cal Bg3g4,Bg4g5][%mdl 32] aiming for g5.} Nf4 $2 {[%emt 0:01:41]} (36... e4 {is a better defense.}) 37. Rf2 $18 {[%emt 0:00:00]} c3 {[%emt 0:00:59]} 38. bxc3 {[%emt 0:00:00]} Rxc3 {[%emt 0:00:47]} (38... Rc7+ $142 39. Kh6 Rxc3) 39. g5 {[%emt 0:00:00]} Rh3+ {[%emt 0:00:12]} 40. Kg7 {[%emt 0:00:00]} b3 {[%emt 0:00:46]} 41. g6 {[%emt 0:00:00]} Rh5 {[%emt 0:00:48]} 42. Kf6 {[%emt 0:00:00] White threatens g7 and mate.} Rh6 {[%emt 0:00:49]} 43. Kf7 {[%emt 0:00:00][%cal Of2f4] White wants to mate with Rxf4!} Nxg6 {[%emt 0:01:42]} 44. Kg7 {[%emt 0:00:00]} Rh3 {[%emt 0:00:08]} 45. Kxg6 {[%emt 0:00:00]} e4 {[%emt 0:00:05]} 46. Kf5 {[%emt 0:00:00]} e3 {[%emt 0:00:01]} 47. Re2 {[%emt 0:00:00] Weighted Error Value: White=0.18 (very precise) /Black=0.59} 1-0

[Event "FIDE WTC Prel-A 2022"]
[Site "Jerusalem"]
[Date "2022.11.20"]
[Round "2.5"]
[White "Ivanchuk, Vasyl"]
[Black "Solomon, Kenny"]
[Result "1/2-1/2"]
[ECO "B51"]
[WhiteElo "2673"]
[BlackElo "2355"]
[Annotator "TA"]
[PlyCount "77"]
[EventDate "2022.11.20"]
[EventType "team-tourn"]
[EventCountry "ISR"]
[SourceTitle "playchess.com"]
[Source "ChessBase"]
[SourceQuality "1"]
[WhiteTeam "Ukraine"]
[BlackTeam "South Africa"]
[WhiteTeamCountry "UKR"]
[BlackTeamCountry "RSA"]
[TimeControl "2700+10"]

{[%evp 9,77,13,16,16,8,12,9,13,14,24,27,20,33,32,22,-4,-6,-6,-6,-20,-15,-25,-18,-25,-18,-20,-18,-20,0,0,0,0,0,0,0,0,0,0,0,0,0,0,0,0,-8,-10,0,-23,-18,-111,-18,-22,-24,-68,-71,-67,-72,-71,-68,-69,-69,-71,-54,-68,-65,-68,0,0,0,0]} 1. e4 {[%emt 0:00:04]} c5 {[%emt 0:00:02]} 2. Nf3 {[%emt 0:00:31]} d6 {[%emt 0:00:03]} 3. Bb5+ {[%emt 0:00:17]} Nd7 {[%emt 0:00:03]} 4. O-O {[%emt 0:00:23]} a6 {[%emt 0:00:06]} 5. Bd3 {[%emt 0:00:09]} Ngf6 {[%emt 0:00:03]} 6. Re1 {[%emt 0:00:18] B51: Sicilian: Moscow Variation (3 Bb5+) without 3...Bd7.} e6 {[%emt 0:00:17]} 7. c3 {[%emt 0:00:06]} b5 {[%emt 0:00:51]} 8. Bc2 {[%emt 0:00:09]} c4 {[%emt 0:00:33]} 9. a4 {[%emt 0:00:09]} Bb7 {[%emt 0:00:10]} 10. axb5 {[%emt 0:00:02]} axb5 {[%emt 0:00:03]} 11. Rxa8 {[%emt 0:00:01]} Qxa8 {[%emt 0:00:58]} 12. Na3 {[%emt 0:00:08]} Bxe4 {[%emt 0:03:32]} 13. Bxe4 {[%emt 0:00:34]} Nxe4 {[%emt 0:00:02]} 14. Nxb5 {[%emt 0:00:07]} Qb7 {[%emt 0:08:58] Prevents Nc7+.} 15. d3 {[%emt 0:02:35]} Nxf2 {[%emt 0:04:44]} 16. Nxd6+ {[%emt 0:01:45]} Bxd6 {[%emt 0:00:03]} 17. Kxf2 {[%emt 0:00:02]} cxd3 {[%emt 0:03:45]} 18. Qxd3 {[%emt 0:00:04] [#]} Bc5+ $146 {[%emt 0:00:06]} ({Predecessor:} 18... Be7 19. Rd1 Nc5 20. Qe2 O-O 21. Be3 Rb8 22. Bc1 h6 23. Kg1 Bf6 24. Kh1 Na4 {0-1 (50) Kapitanchuk,T (2344)-Sarana,A (2654) Chess.com INT 2020}) 19. Kf1 {[%emt 0:00:31]} O-O {[%emt 0:00:11]} 20. b4 {[%emt 0:03:10]} Be7 {[%emt 0:00:04]} 21. Bd2 {[%emt 0:10:10]} Rd8 {[%emt 0:06:08]} 22. Qe2 {[%emt 0:00:44]} Ra8 {[%emt 0:02:57]} 23. c4 {[%emt 0:08:22][%cal Bc3c4,Bc4c5,Bc5c6,Bc6c7][%mdl 32]} Ra2 {[%emt 0:02:48]} ({But not} 23... Bxb4 24. Rb1 $16) 24. c5 {[%emt 0:04:23]} Qd5 {[%emt 0:04:03] Prevents Qc4.} 25. Rc1 {[%emt 0:00:12]} g5 {[%emt 0:01:21]} (25... Bg5 $2 26. c6 Bd8 27. cxd7 $18) 26. c6 {[%emt 0:07:51]} Nb6 {[%emt 0:00:05] [#] Threatens to win with ...g4.} 27. c7 $1 {[%emt 0:02:02]} Nc8 {[%emt 0:00:20] Strongly threatening ...g4.} 28. Rc4 {[%emt 0:03:51] And now Rd4 would win.} e5 {[%emt 0:05:02] Prevents Rd4.} 29. h4 {[%emt 0:00:31]} (29. Qe4 $11 Rxd2 30. Nxd2 Qxd2 31. h4) 29... h6 {[%emt 0:00:08]} (29... f5 $17 {aiming for ...g4.} 30. hxg5 e4) 30. hxg5 {[%emt 0:00:37] Really sharp!} hxg5 {[%emt 0:00:02]} 31. Ke1 {[%emt 0:00:01]} f6 {[%emt 0:00:23]} 32. Qe4 {[%emt 0:00:07]} Qxe4+ {[%emt 0:00:04]} 33. Rxe4 {[%emt 0:00:01]} Rc2 {[%emt 0:00:01] ...Nd6 is the strong threat.} 34. Nxe5 {[%emt 0:00:01]} fxe5 {[%emt 0:00:25]} 35. Rxe5 {[%emt 0:00:01]} Rxc7 {[%emt 0:00:19]} 36. Bxg5 {[%emt 0:00:01]} Bxb4+ {[%emt 0:00:18]} 37. Ke2 {[%emt 0:00:02]} Be7 {[%emt 0:00:08]} (37... Bc3 $15 38. Rb5 Na7) 38. Bxe7 $11 {[%emt 0:00:09]} Rxe7 {[%emt 0:00:02]} 39. Rxe7 {[%emt 0:01:29] Weighted Error Value: White=0.11 (very precise) /Black=0.08 (flawless)} 1/2-1/2